Cogmind - Beta 14 @@@ ROGUE MODE // 2024.09.03 @ 14:44:11 Player: MOPO3 Result: Destroyed by P-60 Hacker with Shock Rifle Performance ------------- Evolutions (0) 0 Regions Visited (3) 600 Robots Destroyed (42) 210 Value Destroyed (957) 957 Prototype IDs (2) 40 Alien Tech Used (0) 0 Bonus (300) 300 TOTAL SCORE: 2107 Bonus ------- Aligned with FarCom 300 Cogmind --------- Core Integrity 0/250 Matter 117/300 Energy 98/100 System Corruption 5% Temperature Warm (193) Movement Walking (400) Ox4 Location -10/Exiles Parts ------- > --- POWER (1) -------- (None) > --- PROPULSION (2) --- Aluminum Leg Aluminum Leg > --- UTILITY (2) ------ Huge Storage Unit Advanced Targeting Computer > --- WEAPON (2) ------- Beam Cannon > --- INVENTORY (25) --- Light Nuclear Core Light Nuclear Core Aluminum Leg Flight Unit Flight Unit Flight Unit Flight Unit Flight Unit Flight Unit Flight Unit Cesium-ion Thruster Heat Sink Small Storage Unit Experimental Sensor Array Signal Interpreter ECM Suite Reaction Control System Light Armor Plating System Shield Beam Cannon Light Cannon Grenade Launcher Grenade Launcher Field Lobotomy Kit (5) Ripper Peak State ------------ > --- POWER ------------ Light Ion Engine > --- PROPULSION ------- Aluminum Leg Aluminum Leg > --- UTILITY ---------- Advanced Targeting Computer Chronowheel > --- WEAPON ----------- Beam Cannon Light Cannon > --- INVENTORY -------- Flight Unit Flight Unit Heat Sink Small Storage Unit System Shield [Rating: 21] Favorites ----------- Power Light Ion Engine Engine Light Ion Engine Power Core Light Nuclear Core Propulsion Aluminum Leg Treads Light Treads Leg Aluminum Leg Utility Huge Storage Unit Device ECM Suite Storage Huge Storage Unit Processor Targeting Computer Weapon Light Cannon Energy Gun EM Pulse Gun Energy Cannon Beam Cannon Ballistic Gun Light Assault Rifle Ballistic Cannon Light Cannon Launcher Rocket Launcher Special Weapon Field Lobotomy Kit Build | -11 -10 -10 -10 ------- Run | Yrd Mat Min Exi Slots Evolved . | . . . . Power . | . . . . Propulsion . | . . . . Utility . | . . . . Weapon . | . . . . Parts Attached 28 | 6 9 8 5 Power 5 | 1 3 1 . Engine 3 | 1 1 1 . Core 2 | . 2 . . Reactor . | . . . . Propulsion 7 | 2 . 5 . Treads 2 | 2 . . . Leg 5 | . . 5 . Wheel . | . . . . Hover . | . . . . Flight . | . . . . Utility 7 | 1 3 1 2 Device 2 | . 1 . 1 Storage 3 | 1 1 . 1 Processor 2 | . 1 1 . Hackware . | . . . . Protection . | . . . . Artifact . | . . . . Weapon 9 | 2 3 1 3 Energy Gun 1 | 1 . . . Energy Cannon 2 | . 1 1 . Ballistic Gun 1 | 1 . . . Ballistic Cannon 3 | . 2 . 1 Launcher 1 | . . . 1 Special Weapon 1 | . . . 1 Impact Weapon . | . . . . Slashing Weapon . | . . . . Piercing Weapon . | . . . . Special Melee Weapon . | . . . . Unidentified Prototypes 2 | . . . 2 Parts Lost 6 | . 2 2 2 Power 1 | . . . 1 Propulsion 1 | . . 1 . Utility . | . . . . Weapon 4 | . 2 1 1 Highest Loss Streak 2 | . 2 1 2 To Critical Strikes . | . . . . Average Slot Usage (%) 99 | . 99 99 99 Engine 10 | . 6 14 13 Core 3 | . 7 . . Treads 12 | . 28 2 . Leg 15 | . . 24 28 Storage 13 | . 14 14 13 Processor 13 | . 12 14 14 Energy Gun 4 | . 11 . . Energy Cannon 9 | . 2 14 14 Ballistic Cannon 13 | . 13 14 12 Peak Build Rating 21 | 6 11 13 21 Average Rating 10 | 4 9 10 13 On Entrance 7 | . 6 9 13 Naked Turns . | . . . . Heaviest Build 94 | 11 90 89 94 Greatest Support 40 | 40 40 40 20 Greatest Overweight (x) 4 | . 2 4 4 Average Overweight (x) 2 | . 1 3 3 Largest Inventory Capacity 25 | 8 25 25 25 Average Capacity 24 | 6 24 25 24 Most Carried 25 | 6 25 25 25 Average Carried 22 | 3 20 24 22 Final Capacity 25 | 8 25 25 25 Final Carried 25 | 6 25 25 25 Class Distribution -------------------- 100% | Mutant Dominant Class ---------------- Mutant | -10/Materials Mutant | -10/Mines Mutant | -10/Exiles Resources | -11 -10 -10 -10 ----------- Run | Yrd Mat Min Exi Matter Collected 683 | 203 293 187 . Remotely . | . . . . Salvage Created 1102 | . 594 334 174 Parts 83 | . 45 26 12 Haulers Intercepted 2 | . 2 . . Recyclers Shooed . | . . . . Parts Field Recycled . | . . . . Retrieved Matter . | . . . . Parts Self-Destructed . | . . . . Prevented . | . . . . Kills | -11 -10 -10 -10 ------- Run | Yrd Mat Min Exi Combat Hostiles Destroyed 33 | . 14 13 6 Guns 4 | . 4 . . Cannons 23 | . 8 13 2 AOE 6 | . 2 . 4 Classes Destroyed 10 | . 6 1 3 Worker 2 | . 2 . . Hauler 2 | . 2 . . Recycler 1 | . . 1 . Operator 1 | . 1 . . Watcher 3 | . 3 . . Swarmer 15 | . 6 9 . Grunt 14 | . 8 4 2 Brawler 1 | . . . 1 Hunter 2 | . . . 2 Programmer 1 | . . . 1 Best Kill Streak 6 | . 6 3 4 Combat Bots Only 4 | . 4 3 4 Max Kills in Single Turn 1 | . 1 1 1 Gunslinging . | . . . . Exploded 1 | . 1 . 1 Melee . | . . . . Uniques/NPCs Destroyed . | . . . . Combat | -11 -10 -10 -10 -------- Run | Yrd Mat Min Exi Hostile Shots Fired 174 | . 57 76 41 Missed 53 | . 16 27 10 Damage Taken 1361 | . 422 483 456 Core 251 | . 47 77 127 Absorbed by Shields . | . . . . Regen/Repaired (Parts) 18 | . 18 . . Core Remaining (%) 100 | 100 . . . Volleys Fired 82 | . 39 29 14 Largest 2 | . 2 2 2 Hottest 95 | . 95 95 93 Shots Fired 163 | . 78 58 27 Gun 31 | . 31 . . Cannon 119 | . 47 58 14 Launcher 13 | . . . 13 Special . | . . . . Kinetic 68 | . 39 29 . Thermal 51 | . 8 29 14 Explosive 13 | . . . 13 Electromagnetic 31 | . 31 . . Robot Hit Streak 8 | . 8 6 5 Robot Miss Streak 6 | . 3 6 1 Penetration Max . | . . . . Secondary Targets . | . . . . Shots Hit Robots 90 | . 50 29 11 Core Hits 55 | . 26 16 13 Critical Kills . | . . . . Critical Parts Destroyed . | . . . . Critical Strikes 2 | . 1 1 . Blast 2 | . 1 1 . Melee Attacks . | . . . . Impact . | . . . . Slashing . | . . . . Piercing . | . . . . Sneak Attacks . | . . . . Combat Hostiles . | . . . . Follow-up Attacks . | . . . . Damage Inflicted 2189 | . 884 508 797 Guns 280 | . 280 . . Cannons 1147 | . 502 508 137 Explosions 762 | . 102 . 660 Melee . | . . . . Ramming . | . . . . Kinetic 624 | . 414 210 . Thermal 625 | . 190 298 137 Explosive 660 | . . . 660 Electromagnetic 280 | . 280 . . Impact . | . . . . Slashing . | . . . . Piercing . | . . . . Highest Corruption 5 | . . . 5 Average Corruption 2 | . . . 2 Corruption Purged . | . . . . Corruption Blocked . | . . . . Overload Shots . | . . . . Overflow Damage 30 | . . . 30 Projectiles . | . . . . Explosions 30 | . . . 30 Melee . | . . . . Knockbacks 8 | . 2 6 . Impact . | . . . . Kinetic 7 | . 2 5 . Secondary 1 | . . 1 . Self-Inflicted Damage 67 | . 67 . . Shots 2 | . 2 . . Rammed . | . . . . Targets Rammed . | . . . . Kicked . | . . . . Crushed . | . . . . Highest Temperature 330 | . 75 330 193 Average Temperature 63 | . 25 101 76 Received Heat Transfer 258 | . 90 138 30 Siege Activations . | . . . . Robots Corrupted . | . . . . Combat Hostiles . | . . . . Parts Fried . | . . . . Impact Corruptions . | . . . . Robots Melted . | . . . . Combat Hostiles . | . . . . Parts Melted 2 | . 1 1 . Heat Transferred 1223 | . 335 629 259 Parts Sabotaged . | . . . . Parts Stolen . | . . . . Parts Stripped . | . . . . Power Chain Reactions 4 | . 4 . . Alert | -11 -10 -10 -10 ------- Run | Yrd Mat Min Exi Peak Influence 168 | . 168 150 . Initial . | . . . . Average 31 | . 38 26 . Maximum Alert Level . | . . . . Low Security (%) 100 | 100 100 100 . Level 1 . | . . . . Level 2 . | . . . . Level 3 . | . . . . Level 4 . | . . . . Level 5 . | . . . . High Security . | . . . . Max Security . | . . . . Squads Dispatched 7 | . 6 1 . Investigation 5 | . 4 1 . Extermination . | . . . . Reinforcement 2 | . 2 . . Assault . | . . . . Garrison . | . . . . Intercept . | . . . . Searches Triggered . | . . . . Construction Impeded . | . . . . Haulers Reinforced . | . . . . Active Scanning Responses . | . . . . Cargo Convoy Interrupts . | . . . . Stealth | -11 -10 -10 -10 --------- Run | Yrd Mat Min Exi Distress Signals . | . . . . Communications Jammed . | . . . . Distress Signals . | . . . . Times Spotted 46 | . 23 14 9 Peak Tracking Total 5 | . 4 3 5 Tactical Retreats 5 | . 2 3 . Traps | -11 -10 -10 -10 ------- Run | Yrd Mat Min Exi Traps Triggered 1 | . 1 . . Indirectly . | . . . . Trap Hack Attempts . | . . . . Triggered . | . . . . Disarmed . | . . . . Reprogrammed . | . . . . Reused . | . . . . Traps Extracted . | . . . . Installed . | . . . . Triggered . | . . . . Machines | -11 -10 -10 -10 ---------- Run | Yrd Mat Min Exi Machines Disabled 4 | . 1 . 3 Max in Single Turn 2 | . 1 . 2 Machines Repaired . | . . . . Machines Dismantled . | . . . . Machines Sabotaged . | . . . . Overloaded Fab Kills . | . . . . Hacking | -11 -10 -10 -10 --------- Run | Yrd Mat Min Exi Machines Accessed 11 | . 9 2 . Terminals 7 | . 6 1 . Fabricators . | . . . . Repair Stations 1 | . 1 . . Recycling Units 2 | . 2 . . Scanalyzers . | . . . . Garrison Access . | . . . . Total Hacks 36 | . 28 8 . Successful 18 | . 14 4 . Failed 18 | . 14 4 . Catastrophic 2 | . 2 . . Database Lockouts . | . . . . Manual 28 | . 20 7 1 Terminals 26 | . 19 7 . Fabricators . | . . . . Repair Stations 6 | . 6 . . Recycling Units 3 | . 3 . . Scanalyzers . | . . . . Garrison Access . | . . . . Terminal Hacks 6 | . 3 3 . Record 1 | . . 1 . Part Schematic 1 | . . 1 . Open Door 1 | . . 1 . Branch Access Points 1 | . 1 . . Unreport Threat 1 | . 1 . . Recall Reinforcements 1 | . 1 . . Fabricator Hacks . | . . . . Repair Station Hacks 4 | . 4 . . Scan Component 2 | . 2 . . Repair 2 | . 2 . . Recycling Unit Hacks 2 | . 2 . . Retrieve Components 2 | . 2 . . Scanalyzer . | . . . . Garrison Access Hacks . | . . . . Unauthorized Hacks 6 | . 5 1 . Terminals 6 | . 5 1 . Botnet 6 | . 5 1 . Fabricators . | . . . . Repair Stations . | . . . . Recycling Units . | . . . . Scanalyzers . | . . . . Garrison Access . | . . . . Data Cores Recovered . | . . . . Used . | . . . . Hacking Detections 8 | . 7 1 . Full Trace Events 2 | . 2 . . Feedback Events . | . . . . Feedback Blocked . | . . . . Robot Schematics Acquired . | . . . . Robots Built . | . . . . Authchips . | . . . . Time . | . . . . Total Robot Build Rating . | . . . . Part Schematics Acquired 1 | . . 1 . Parts Built . | . . . . Authchips . | . . . . Time . | . . . . Total Part Build Rating . | . . . . Parts Repaired 2 | . 2 . . Time 74 | . 74 . . Parts Recycled . | . . . . Recycled Matter . | . . . . Retrieved Matter . | . . . . Retrieved Components 10 | . 10 . . Parts Scanalyzed . | . . . . Part Schematics Acquired . | . . . . Parts Damaged . | . . . . Bothacking | -11 -10 -10 -10 ------------ Run | Yrd Mat Min Exi Used RIF Installer . | . . . . Robots Hacked . | . . . . Non-combat . | . . . . Combat . | . . . . Robot Hacks Applied . | . . . . Relay Couplers Released . | . . . . Fabnet Peak Effective % . | . . . . Robots Rewired . | . . . . Allies Hacked . | . . . . Hacks Repelled . | . . . . Allies | -11 -10 -10 -10 -------- Run | Yrd Mat Min Exi Total Allies . | . . . . Largest Group . | . . . . Highest-Rated Group . | . . . . Highest-Rated Ally . | . . . . Total Orders . | . . . . Ally Attacks . | . . . . Total Damage . | . . . . Kills . | . . . . Allies Corrupted . | . . . . Allies Melted . | . . . . Intel | -11 -10 -10 -10 ------- Run | Yrd Mat Min Exi Robot Analysis Total . | . . . . Derelict Logs Recovered 3 | . . 3 . Drone Launches . | . . . . Drone Recoveries . | . . . . Exploration | -11 -10 -10 -10 ------------- Run | Yrd Mat Min Exi Turns Passed 6664 | 116 2676 2921 951 Spaces Moved 1691 | 66 699 716 210 Core 3 | 3 . . . Treads 846 | 63 699 84 . Legs 842 | . . 632 210 Wheels . | . . . . Hover . | . . . . Flight . | . . . . Fastest Speed 50 | 50 160 320 120 Average Speed 347 | 155 316 390 365 Slowest Speed 400 | 160 320 400 400 Overloaded Moves . | . . . . Propulsion Burnouts . | . . . . Robots Hopped . | . . . . Cave-ins Triggered . | . . . . Exploration Rate (%) 59 | 6 94 97 40 Regions Visited 3 Branch Regions 2 Pre-discovered Areas 2 | . . 2 . Known Exits Taken 1 | . 1 . . Unknown Exits Taken 2 | 1 . 1 . Scrap Searched 1 | . . 1 . Spaces Dug . | . . . . Terrain Destroyed 42 | . 16 . 26 Melee . | . . . . Projectile . | . . . . AOE 42 | . 16 . 26 Terrain Rammed . | . . . . Walls Destroyed . | . . . . Machines Disabled . | . . . . Actions | -11 -10 -10 -10 --------- Run | Yrd Mat Min Exi Total 2326 | 77 1092 792 365 Wait 430 | . 308 9 113 Move 1688 | 65 698 715 210 Hop . | . . . . Pick Up 68 | 6 27 15 20 Fast Attach 13 | 6 4 . 3 Attach 4 | . 2 2 . Detach 2 | . 2 . . Swap 11 | . 3 6 2 Drop 28 | . 9 16 3 Fire 82 | . 39 29 14 Melee . | . . . . Ram . | . . . . Kick . | . . . . Crush . | . . . . Escape Stasis . | . . . . Rewire . | . . . . Trap . | . . . . Miscellaneous . | . . . . Route ------- -11/Scrapyard -10/Materials (discovered 5 exits: [*Mat x3] / *Min x2) -10/Mines (discovered 3 exits: [*Mat x2] / *Exi) -10/Exiles History --------- Turn | Location | Event 12 | -11/Scrapyard | Discovered new exit (range 15) 117 | -11/Scrapyard | Entered Materials 303 | -10/Materials | Build established: Mutant 393 | -10/Materials | Discovered new exit (range 7) 1535 | -10/Materials | Identified exit to Mines 2097 | -10/Materials | Discovered new exit (range 11) 2207 | -10/Materials | Repaired Corrupted Flight Unit 2246 | -10/Materials | Repaired Lgt. Nuclear Core 2493 | -10/Materials | Discovered new exit (range 7) 2793 | -10/Materials | Entered Mines 2892 | -10/Mines | Found a damaged Exp. Sensor Array with a note attached 2899 | -10/Mines | Found Prototype Device 3272 | -10/Mines | Discovered new exit (range 10) 3330 | -10/Mines | Deemed a non-threat by the Exiles lab entrance 3330 | -10/Mines | Discovered new exit (range 5) 3474 | -10/Mines | A weapon hastily lodged in a ceiling crevice suddenly fell to the ground 3848 | -10/Mines | Learned location of Storage (-9) 4171 | -10/Mines | Learned location of Zion (-6) 4339 | -10/Mines | Received a Rocket Launcher from a helpful Derelict 4358 | -10/Mines | Learned Materials emergency access door positions 4664 | -10/Mines | Met a Derelict shopkeep closing up shop 4826 | -10/Mines | Found a hidden stash of uninstalled traps 5130 | -10/Mines | Discovered new exit (range 10) 5714 | -10/Mines | Entered Exiles 5810 | -10/Exiles | Met 8R-AWN 5882 | -10/Exiles | Met EX-HEX 5994 | -10/Exiles | Met EX-BIN 6042 | -10/Exiles | Aligned with FarCom system 6046 | -10/Exiles | Given EX-Vault access code 6138 | -10/Exiles | Opened EX-Vault 6193 | -10/Exiles | Found Prototype Device 6193 | -10/Exiles | Identified Chronowheel 6193 | -10/Exiles | Activated Chronowheel 6205 | -10/Exiles | Found Prototype Special Weapon 6205 | -10/Exiles | Identified Field Lobotomy Kit 6233 | -10/Exiles | Exiles lab attacked by MAIN.C 6580 | -10/Exiles | Core integrity fell below 50% 6648 | -10/Exiles | Core integrity fell below 20% 6665 | -10/Exiles | Destroyed by P-60 Hacker with Shock Rifle Last Messages --------------- 06353_ Acquired Beam Cannon. 06358_ Acquired Cesium-ion Thruster. 06363_ Acquired Ripper. 06368_ Acquired Flight Unit. 06579_ Penetrated by Slug. 06580_ BIN's Workstation disabled. 06582_ The unstable cave ceiling collapses. 06583_ H-55 Commando destroyed. 06598_ The unstable cave ceiling collapses. 06614_ H-55 Commando destroyed. 06620_ G-34 Mercenary destroyed. 06630_ P-60 Hacker destroyed. 06651_ Destroyed Aluminum Leg. 06654_ Lgt. Ion Engine destroyed. 06657_ Destroyed Remote Datajack. 06657_ G-34 Mercenary destroyed. 06658_ Slug penetrates Wall. 06661_ The unstable cave ceiling collapses. 06661_ Rocket Launcher destroyed. 06663_ FarCom Aligner disabled. Map ----- +----------------------------------------------------+ | ??????????????????????# #???#####????????????? | | ??????????????????????# #??"""""#????????????? | | ??????????????????????# = ## """#????????????? | | ??????????????????????# X""#????????????? | | ??????????????????????# ## """#????????????? | | ????????????????####??# #??"""""#????????????? | | ????????????????"""""?# #???#####????????????? | | ???????????????"""" ## #????????????????????? | | ??????????????#""X" #????????????????????? | | ??????????????#" #????????????????????? | | ??????????????#" ## #????????????????????? | | ??????????????#""""""?# #?#########??????????? | | ???????????????#"###??# #?#"""""""#??????????? | | ??????????????????????# #?#"""""""#??????????? | | ??????????????????????# #?#"""""""#??????????? | | ?????????????????????## ###"" """"#??????????? | | ?????????????????????#" """"#??????????? | | ?????????????????????#" """#??????????? | | ?????????????????????#" """#??????????? | | ?????????????????????#" ""#??????????? | | ?????????????????????#" """#??????????? | | ?????????????????????#" """##?????????? | | ?????????????????????## """""?????????? | | ??????????????????????# """##?????????? | | ?????????????????????## "X" """""?????????? | | ?????????????????????# @ """ #??????????? | | ?????????????????????## """"""""#??????????? | | ?????????????????????## = ##########??????????? | | ????????????????????## % ??????????????????? | | ???????????????????##"p ##????????????????? | | ??????????????????" b #???????????????? | | ????????????????"" ############????? | | ????????????????"" = p ##"""""""""##???? | | ??????????????? " %* " """ """"##??? | | ????????????? b "" " #??? | | ????????????? h " """#??? | | ????????????? * " "#??? | | ?????????????? %[ ! !%= " "##?? | | ?????????????? g*%[ %= = ""### | | ?????????????? "" """# | | ??????????????? ##### " "# | | ??????????????? ""#?????#####""" # | | ????????????????????????????##""" | | ?????????????????????????????#"""" | | ?????????????????????????????#"" | | ?????????????????????????????"""" | | ?????????????????????????????? | | ?????????????????????????????? | | ????????????????????????????? | | ????????????????????????????? | +----------------------------------------------------+ Best States ------------- Heat Dissipation 25 Energy Generation 14 Energy Capacity 160 Matter Stores 300 Matter Capacity 300 Sight Range 16 Terrain Scan Density 10 ECM Strength 1 Evasion (%) 55 Targeting Accuracy 8 Recoil Reduction 2 Item Schematics ----------------- Flight Unit | -10/Mines | Hacked Robot Schematics ------------------ None Fabricated ------------ Nothing Alien Tech Used ----------------- None Achievements -------------- None Challenges ------------ None Game ------ Seed CompositeGrenadeBlaster Manual? 0 Play Time 00:27:23 Cumulative 35.5 hours Start 2024.09.03 @ 12:28:15 End 2024.09.03 @ 14:44:11 Sessions 1 Manual Loads 0 Difficulty Rogue Special Mode None Game No. 51 Rogue 51 Adventurer 0 Explorer 0 Win Type - Total 1 Types 1/0/0/0/0/0/0/0/0 Lore% 14 Gallery% 33 Achievement% 32 Wizard Run 0 Options --------- Layout 0 ASCII 0 Keyboard 0 Movement Numpad Keybinds 0 Fullscreen 1 Font 18/Cog Map View 76x50 Zoom Use 0% Tactical HUD 1 Map Filters NONE Filters NONE Steam 1 RUN: 08725f59-8b1c-4b78-a6e8-2216da887d78